bitfinex-derivatives/quotes_ETHF0:USTF0_20241231
["timestamp","ask_amount","ask_price","bid_price","bid_amount"]
[1735635822696,0.23705,3380.4,3380.1,0.23706]
[1735635823092,3.6397,3380.6,3379.9,3.2078]
[1735635823294,0.23704,3380.5,3380.2,0.23706]
[1735635823693,3.6397,3380.6,3379.9,3.2078]
[1735635823895,3.87673,3380.6,3380.3,0.23705]
[1735635824394,3.6397,3380.6,3380.3,0.23705]
[1735635824598,3.6397,3380.6,3380.2,0.23706]
[1735635824599,0.23704,3380.5,3380.2,0.23706]
[1735635825098,0.23704,3380.4,3379.9,3.2078]
[1735635825302,0.23704,3380.4,3380.1,0.23706]
[1735635825497,0.23704,3380.5,3380.2,0.23705]
[1735635825992,0.23705,3380.4,3380.1,0.23706]
[1735635826193,0.23705,3380.3,3380.0,0.23707]
[1735635826501,0.23706,3380.2,3380.0,0.23707]
[1735635826703,0.23705,3380.3,3380.0,0.23707]
[1735635827198,3.6397,3380.6,3379.9,3.2078]
[1735635827499,3.6397,3380.6,3380.0,0.23707]
[1735635827703,0.23706,3380.3,3380.0,0.23707]
[1735635828093,3.6397,3380.6,3379.9,3.2078]
[1735635828497,0.23707,3380.1,3379.9,3.2078]
[1735635828794,3.6397,3380.6,3379.9,3.2078]
[1735635829196,3.6397,3380.6,3380.0,0.4424]
[1735635829395,3.6397,3380.6,3380.4,0.23704]
[1735635829590,3.87674,3380.6,3380.1,0.23706]
[1735635829904,3.6397,3380.6,3380.1,0.23706]
[1735635830200,0.23704,3380.5,3380.1,0.23706]
[1735635830807,0.23704,3380.5,3380.2,0.23705]
[1735635830994,3.6397,3380.6,3380.0,0.23707]
[1735635831199,3.87673,3380.6,3380.2,0.23705]
[1735635831600,3.87673,3380.6,3379.9,3.2078]
[1735635831800,3.87673,3380.6,3380.3,0.23705]
[1735635832407,0.66893,3380.6,3380.3,0.23705]
[1735635833503,0.23704,3380.5,3380.0,0.23707]
[1735635833805,0.23706,3380.3,3380.0,0.23707]
[1735635834003,0.23706,3380.3,3379.9,3.2078]
[1735635834004,3.6397,3380.6,3379.9,3.2078]
[1735635834204,0.4319,3380.6,3379.9,3.2078]
[1735635834408,0.23704,3380.5,3380.2,0.23705]
[1735635834703,0.23704,3380.5,3380.3,0.23705]
[1735635834903,0.4319,3380.6,3380.4,0.23704]
[1735635835103,0.23704,3380.5,3380.0,0.4224]
[1735635835705,0.23704,3380.5,3380.2,0.23705]
[1735635836101,0.4319,3380.6,3380.0,0.4224]
[1735635836303,0.23705,3380.4,3380.1,0.23706]
[1735635836499,0.4319,3380.6,3380.3,0.23705]
[1735635836704,0.23704,3380.4,3380.1,0.23706]
[1735635837198,0.23704,3380.4,3380.2,0.23706]
[1735635837400,0.4319,3380.6,3380.3,0.23705]
[1735635837600,0.4319,3380.6,3380.2,0.23706]
[1735635837601,0.23704,3380.5,3380.2,0.23706]
[1735635837800,0.66893,3380.6,3380.3,0.23705]
[1735635839001,0.4319,3380.6,3379.9,3.2078]
[1735635839206,0.4319,3380.6,3380.5,0.23704]
[1735635839401,0.23702,3380.8,3380.6,0.23703]
[1735635839606,0.23702,3380.8,3380.4,0.4503]
[1735635839806,0.23702,3380.8,3380.5,0.23703]
[1735635840600,3.6463,3381.0,3380.4,0.4503]
[1735635840806,3.6463,3381.0,3380.9,0.23701]
[1735635841399,3.2078,3381.0,3380.9,0.23701]
[1735635841605,9.48291057,3381.7,3381.3,0.23698]
[1735635841606,0.4485,3381.4,3381.3,0.23698]
[1735635841815,8.08919085,3381.8,3381.7,0.23695]
[1735635843009,0.4485,3382.0,3381.8,0.23694]
[1735635843202,0.4485,3382.0,3381.3,0.4445]
[1735635843415,0.4485,3382.0,3381.4,0.23697]
[1735635843712,0.23694,3381.9,3381.5,0.23696]
[1735635843909,0.4485,3382.0,3381.3,0.4445]
[1735635844416,0.23696,3381.6,3381.2,0.23698]
[1735635844912,0.4485,3382.0,3381.1,3.2078]
[1735635845115,0.23695,3381.8,3381.4,0.23697]
[1735635845810,0.23694,3381.9,3381.5,0.23696]
[1735635846310,0.4485,3382.0,3381.2,2.39483701]
[1735635846516,0.4485,3382.0,3381.9,0.23694]
[1735635847312,0.1992895,3382.1,3382.0,0.23693]
[1735635847613,3.2078,3382.2,3382.1,0.23692]
[1735635848114,3.2078,3382.2,3381.7,0.4557]
[1735635848306,3.2078,3382.2,3381.2,5.60263701]
[1735635848307,3.2078,3382.2,3381.2,6.05153701]
[1735635848505,3.2078,3381.8,3381.2,3.6567]
[1735635848706,0.68016,3381.7,3381.3,0.23698]
[1735635849910,0.68016,3381.7,3381.2,0.68589]
[1735635849911,0.23696,3381.6,3381.2,0.68589]
[1735635850117,2.39483701,3381.5,3380.7,3.2078]
[1735635850322,0.23701,3381.0,3380.7,3.2078]
[1735635850524,0.23701,3381.0,3380.6,0.23703]
[1735635850716,0.23698,3381.3,3380.7,0.23702]
[1735635850920,4.121,3381.4,3380.6,2.39483701]
[1735635851231,0.23701,3380.9,3380.5,0.68723]
[1735635851530,4.121,3381.4,3380.5,0.4502]
[1735635851732,3.6704,3381.4,3380.6,2.39483701]
[1735635852032,0.4432,3381.7,3381.3,0.23698]
[1735635852326,0.4432,3381.7,3380.9,5.60263701]
[1735635852523,0.68015,3381.7,3381.3,0.23698]
[1735635852927,0.4432,3381.7,3381.1,0.4176]
[1735635853131,0.4361,3381.6,3381.1,0.4176]
[1735635853335,0.4361,3381.6,3381.4,0.23697]
[1735635853839,0.4361,3381.6,3381.2,0.456]
[1735635854029,0.67306,3381.6,3381.3,0.23698]
[1735635854429,0.4361,3381.6,3381.2,0.456]
[1735635854631,0.4361,3381.6,3381.3,0.23698]
[1735635854834,0.67306,3381.6,3381.3,0.23698]
[1735635855031,0.4432,3381.7,3381.2,0.456]
[1735635855533,0.23694,3381.9,3381.6,0.23696]
[1735635856127,0.4542,3382.0,3381.3,3.2078]
[1735635856331,0.23695,3381.9,3381.6,0.23696]
[1735635857034,0.23695,3381.8,3381.5,0.23696]
[1735635857335,0.23695,3381.8,3381.6,0.23696]
[1735635857631,0.23697,3381.5,3381.2,0.69299]
[1735635857831,0.4621,3381.4,3381.2,0.23699]
[1735635858037,0.4621,3381.4,3381.1,0.4176]
[1735635858038,1.15957,3381.4,3381.1,0.65459]
[1735635858529,0.23699,3381.3,3381.1,0.4176]
[1735635858730,1.15958,3381.4,3381.1,0.4176]
[1735635858931,0.9226,3381.4,3381.2,0.23699]
[1735635859126,0.9226,3381.4,3381.1,0.4176]
[1735635859326,0.23698,3381.3,3381.1,0.4176]
[1735635859733,0.23698,3381.3,3380.9,3.2078]
[1735635859922,1.15958,3381.4,3381.0,0.237]
[1735635860135,0.23699,3381.2,3380.9,3.44481]
[1735635860333,0.23698,3381.3,3380.9,3.44481]
[1735635860833,0.23698,3381.3,3380.9,0.23701]
[1735635861135,0.23699,3381.2,3380.9,0.23701]
[1735635861338,0.23701,3380.9,3380.6,0.23703]
[1735635861535,0.4176,3381.1,3380.4,0.23704]
[1735635861830,3.2078,3380.9,3380.2,0.4437]
[1735635862036,0.23704,3380.5,3380.2,0.68076]
[1735635862242,0.23706,3380.3,3380.1,3.2078]
[1735635862430,0.23706,3380.2,3380.1,3.2078]
[1735635862939,0.4533,3380.4,3380.1,3.44486]
[1735635863234,0.4533,3380.4,3380.1,3.2078]
[1735635863538,0.23705,3380.3,3380.1,3.2078]
[1735635863730,0.69035,3380.4,3380.1,3.2078]
[1735635864033,0.4533,3380.4,3380.1,3.2078]
[1735635864232,3.2078,3380.9,3380.7,0.23702]
[1735635864432,0.4568,3381.2,3380.8,0.23702]
[1735635864736,0.69379,3381.2,3380.9,0.23701]
[1735635865037,0.4568,3381.2,3381.1,0.23699]
[1735635865244,3.2078,3381.5,3380.6,0.4279]
[1735635865540,3.2078,3381.5,3381.4,0.23697]
[1735635865931,3.2078,3381.5,3381.3,0.23698]
[1735635866128,3.2078,3381.5,3381.4,0.23697]
[1735635866740,3.2078,3381.5,3380.8,40.8]
[1735635866934,3.2078,3381.5,3381.3,0.23698]
[1735635867134,0.4605,3381.8,3380.9,3.6592]
[1735635867338,0.4605,3381.8,3381.4,0.23697]
[1735635867539,0.23695,3381.7,3381.3,0.23698]
[1735635867930,0.69745,3381.8,3381.4,0.23697]
[1735635868436,0.4605,3381.8,3381.4,0.23697]
[1735635868633,0.23695,3381.7,3381.3,0.23698]
[1735635869233,0.4605,3381.8,3381.6,0.23696]
[1735635869445,0.4605,3381.8,3381.0,0.4165]
[1735635869635,0.69745,3381.8,3381.4,0.23697]
[1735635870141,0.4605,3381.8,3381.6,0.23696]
[1735635870344,0.4605,3381.8,3381.4,0.23697]
[1735635870540,0.4605,3381.8,3381.7,0.23695]
[1735635870839,3.2078,3381.9,3381.8,0.23695]
[1735635871447,3.2078,3382.3,3382.2,0.23692]
[1735635871735,19.64517779,3383.2,3382.6,0.23689]
[1735635871736,3.2078,3382.7,3382.6,0.23689]
[1735635871941,3.2078,3383.1,3382.7,0.23688]
[1735635872141,3.2078,3383.1,3382.2,0.459]
[1735635872336,3.2078,3383.1,3382.9,0.23686]
[1735635872648,3.2078,3383.1,3382.2,0.459]
[1735635873742,3.2078,3383.1,3382.8,0.23687]
[1735635873944,0.23686,3383.0,3382.5,0.23689]
[1735635874139,3.2078,3383.1,3382.2,0.459]
[1735635874336,0.23689,3382.7,3382.2,0.69592]
[1735635874540,3.2078,3382.7,3381.7,7.78824681]
[1735635874747,0.23693,3382.0,3381.7,4.58044681]
[1735635874940,0.23693,3382.0,3381.4,9.11600049]
[1735635874941,0.23693,3382.0,3381.4,0.23697]
[1735635875137,0.23693,3382.0,3381.3,3.2078]
[1735635875138,0.23693,3382.0,3381.5,0.23697]
[1735635875544,0.23695,3381.8,3381.2,1.11458]
[1735635875842,0.23696,3381.7,3381.2,0.68348]
[1735635876145,0.67086,3381.7,3381.2,0.68348]
[1735635876340,0.4339,3381.7,3381.2,0.4465]
[1735635876531,0.4339,3381.7,3381.4,0.23697]
[1735635876732,0.4339,3381.7,3381.2,0.4465]
[1735635877236,0.67085,3381.7,3381.2,0.68348]
[1735635877637,0.4339,3381.7,3381.2,0.4465]
[1735635877839,0.4339,3381.7,3381.4,0.23697]
[1735635878034,0.4339,3381.7,3381.5,0.23696]
[1735635878241,0.4181,3381.9,3381.3,3.2078]
[1735635878442,3.44471,3382.3,3381.8,0.23695]
[1735635878842,0.23692,3382.2,3381.4,0.23697]
[1735635879139,0.23693,3382.1,3381.3,3.2078]
[1735635879443,3.44471,3382.3,3381.8,0.23695]
[1735635879632,3.2078,3382.3,3381.8,0.23695]
[1735635879833,3.2078,3382.3,3381.3,3.2078]
[1735635880044,0.23693,3382.1,3381.6,0.23696]
[1735635880237,3.2078,3382.3,3381.3,3.2078]
[1735635880438,0.23692,3382.2,3381.7,0.23695]
[1735635880638,3.2078,3382.3,3381.3,3.2078]
[1735635880846,3.2078,3382.3,3381.8,0.23694]
[1735635881144,3.2078,3382.3,3381.3,3.2078]
[1735635881345,3.2078,3382.3,3381.7,0.23695]
[1735635881544,0.23692,3382.1,3381.7,0.23695]
[1735635881749,0.23692,3382.2,3381.7,0.23695]
[1735635882043,3.2078,3382.3,3381.7,0.23695]
[1735635882249,0.23693,3382.1,3381.7,0.23695]
[1735635882438,3.2078,3382.3,3381.3,3.2078]
[1735635882642,0.4204,3382.0,3381.6,0.23696]
[1735635882941,0.4246,3381.9,3381.6,0.23696]
[1735635883245,0.4246,3381.9,3381.3,3.2078]
[1735635883541,0.4246,3381.9,3381.7,0.23695]
[1735635884042,0.4246,3381.9,3381.6,0.23696]
[1735635884245,0.4246,3381.9,3381.5,0.23696]
[1735635884446,0.4246,3381.9,3381.3,3.2078]
[1735635884635,0.4246,3381.9,3381.6,0.23695]
[1735635884839,0.4246,3381.9,3381.3,3.2078]
[1735635885039,0.4246,3381.9,3381.3,3.44478]
[1735635885040,0.23695,3381.8,3381.3,3.44478]
[1735635885235,0.23695,3381.8,3381.3,0.23698]
[1735635885544,0.23695,3381.8,3381.2,0.4465]
[1735635885740,0.23695,3381.8,3381.3,0.23698]
[1735635885946,0.23695,3381.8,3381.4,0.23697]
[1735635886146,0.23696,3381.7,3381.2,0.23699]
[1735635886345,0.23695,3381.8,3381.4,0.23697]
[1735635887042,0.23695,3381.8,3381.3,0.23698]
[1735635887444,0.23695,3381.7,3381.3,0.23698]
[1735635887650,3.6324,3381.9,3381.0,0.237]
[1735635887947,0.23697,3381.5,3381.0,0.237]
[1735635888149,0.23697,3381.5,3380.9,3.2078]
[1735635888346,0.23697,3381.5,3381.1,0.23699]
[1735635889844,0.23697,3381.5,3381.2,0.23699]
[1735635890042,3.6324,3381.9,3380.9,3.2078]
[1735635890243,0.23695,3381.8,3381.5,0.23697]
[1735635890443,0.23696,3381.7,3381.4,0.23697]
[1735635891242,0.66154,3381.9,3381.7,0.23695]
[1735635891444,3.2078,3382.3,3381.3,3.2078]
[1735635891646,0.23695,3381.8,3381.5,0.23696]
[1735635891843,3.2078,3381.9,3381.4,0.4288]
[1735635892049,0.23694,3382.0,3381.7,0.23695]
[1735635892748,0.23693,3382.1,3381.4,0.4288]
[1735635893047,0.4236,3382.2,3382.0,0.23693]
[1735635893245,0.66052,3382.2,3382.0,0.23693]
[1735635893445,0.4236,3382.2,3382.0,0.23693]
[1735635893651,0.4236,3382.2,3381.4,0.8586]
[1735635893652,0.4236,3382.2,3382.1,0.23692]
[1735635894059,3.2078,3382.3,3382.2,0.23692]
[1735635894548,3.44471,3382.3,3382.0,0.23693]
[1735635894852,3.44471,3382.3,3382.1,0.23692]
[1735635894853,3.2078,3382.3,3382.1,0.23692]
[1735635895038,3.2078,3382.3,3381.8,0.4511]
[1735635895039,3.2078,3382.3,3382.2,0.23692]
[1735635896348,3.2078,3382.3,3382.1,0.23692]
[1735635896649,3.2078,3382.3,3381.7,3.2078]
[1735635896852,3.2078,3382.3,3381.6,0.23696]
[1735635896853,0.23694,3381.9,3381.6,0.23696]
[1735635898053,0.42,3382.0,3381.4,0.4288]
[1735635898252,3.2078,3382.3,3382.0,0.23693]
[1735635898253,3.44471,3382.3,3382.0,0.23693]
[1735635898654,3.2078,3382.3,3381.4,0.4288]
[1735635898856,0.23694,3382.0,3381.7,0.23695]
[1735635899054,3.2078,3382.3,3381.4,0.4288]
[1735635899257,0.23695,3381.9,3381.5,0.23696]
[1735635899552,2.39313419,3382.1,3381.4,0.4288]
[1735635899759,0.23695,3381.7,3381.4,0.66577]
[1735635899959,0.67335,3381.8,3381.5,0.23696]
[1735635900159,0.4364,3381.8,3381.4,0.4288]
[1735635900355,3.2078,3382.3,3381.4,0.4288]
[1735635900556,0.23692,3382.2,3381.9,0.23694]
[1735635900762,3.6442,3382.3,3381.4,0.4288]
[1735635900956,3.6442,3382.3,3381.7,0.23695]
[1735635901153,3.6442,3382.3,3381.4,0.4288]
[1735635901361,0.23695,3381.8,3381.4,0.4288]
[1735635901559,0.23695,3381.8,3381.5,0.23697]
[1735635901857,0.23695,3381.8,3381.4,0.4288]
[1735635901858,0.23693,3382.1,3381.7,0.23695]
[1735635902055,3.6442,3382.3,3382.0,0.23693]
[1735635902260,3.6442,3382.3,3381.4,2.82193419]
[1735635902261,3.2078,3382.3,3382.1,0.23692]
[1735635902761,3.2078,3382.3,3382.0,0.23693]
[1735635902956,3.2078,3382.3,3381.4,4.09693419]
[1735635903353,0.23693,3382.0,3381.7,0.23695]
[1735635903557,3.2078,3382.3,3381.7,0.23695]
[1735635903858,3.2078,3382.3,3381.4,0.4288]
[1735635904162,0.23696,3381.7,3381.4,0.66577]
[1735635904365,0.23695,3381.8,3381.5,0.23696]
[1735635905158,0.23694,3381.9,3381.6,0.23695]
[1735635905461,0.23697,3381.5,3381.4,0.4288]
[1735635905961,0.23696,3381.7,3381.4,0.66577]
[1735635906161,0.8466,3381.8,3381.4,0.66577]
[1735635906364,0.23696,3381.6,3381.4,0.4288]
[1735635907456,0.23697,3381.5,3381.1,0.4566]
[1735635907654,0.23697,3381.5,3381.2,0.23699]
[1735635908156,0.23696,3381.6,3381.3,0.23698]
[1735635908665,0.23697,3381.5,3381.2,0.23698]
[1735635908963,0.23696,3381.6,3381.3,0.23698]
[1735635909563,1.08355,3381.8,3381.5,0.23697]
[1735635909764,1.08355,3381.8,3381.1,0.4566]
[1735635910060,0.23695,3381.7,3381.2,0.23698]
[1735635910261,0.23695,3381.7,3381.3,0.23698]
[1735635910462,0.23696,3381.6,3381.3,0.23698]
[1735635910766,0.23696,3381.7,3381.4,0.23697]
[1735635911668,1.08355,3381.8,3381.6,0.23696]
[1735635911963,1.08355,3381.8,3381.5,0.23697]
[1735635912164,0.8466,3381.8,3381.6,0.23696]
[1735635912358,1.08355,3381.8,3381.6,0.23696]
[1735635912765,8.52659085,3382.2,3381.2,3.2078]
[1735635912766,0.23694,3381.9,3381.2,3.2078]
[1735635912965,0.23694,3381.9,3381.6,0.23696]
[1735635913470,0.23697,3381.5,3381.2,0.23698]
[1735635913771,0.4623,3381.8,3381.3,0.23698]
[1735635913967,0.23696,3381.6,3381.3,0.23697]
[1735635914667,0.23696,3381.6,3381.1,0.4566]
[1735635915169,0.23696,3381.7,3381.4,0.23697]
[1735635915865,0.4623,3381.8,3381.7,0.23695]
[1735635916172,8.97639085,3382.2,3381.6,0.23696]
[1735635916370,0.23694,3381.9,3381.6,0.23696]
[1735635916871,0.23694,3382.0,3381.7,0.23695]
[1735635917172,3.6317,3382.3,3381.3,0.59246]
[1735635917366,3.6317,3382.3,3382.2,0.23692]
[1735635917572,3.2078,3382.3,3382.2,0.23692]
[1735635917870,0.23689,3382.6,3382.1,3.2078]
[1735635918070,3.6576,3382.9,3382.1,3.2078]
[1735635918470,3.6576,3382.9,3382.0,41.2373]
[1735635918471,0.23691,3382.4,3382.0,41.2373]
[1735635918668,0.23691,3382.4,3382.1,0.23692]
[1735635918872,0.23691,3382.4,3381.7,4.103]
[1735635918873,0.458,3382.7,3381.7,4.103]
[1735635919172,0.4316,3382.3,3382.1,0.23692]
[1735635919568,0.458,3382.7,3382.3,0.2369]
[1735635919569,0.23689,3382.6,3382.3,0.2369]
[1735635919765,0.458,3382.7,3382.4,0.2369]
[1735635919968,0.4316,3382.8,3381.9,2.39313419]
[1735635920270,3.2078,3382.9,3381.7,54.48344681]
[1735635920271,3.2078,3382.9,3382.7,0.23688]
[1735635920967,3.2078,3383.4,3382.6,3.2078]
[1735635921165,4.096,3383.8,3382.7,0.4272]
[1735635921371,0.23682,3383.6,3383.2,0.23685]
[1735635921565,0.23684,3383.4,3383.0,0.23686]
[1735635921971,0.23682,3383.6,3383.2,0.23684]
[1735635922170,0.23682,3383.6,3382.7,0.4272]
[1735635922371,0.23681,3383.7,3383.3,0.23683]
[1735635922668,0.23682,3383.6,3383.3,0.23684]
[1735635922866,2.39313419,3383.7,3383.0,3.2078]
[1735635923065,0.23684,3383.4,3383.0,3.44466]
[1735635923966,0.23685,3383.1,3382.9,0.4591]
[1735635924165,0.23685,3383.1,3382.5,4.58044681]
[1735635924166,3.2078,3383.0,3382.5,4.58044681]
[1735635924368,4.0931,3383.0,3382.3,5.00674681]
[1735635924766,0.23689,3382.6,3382.3,5.00674681]
[1735635924968,0.2369,3382.4,3382.3,4.58044681]
[1735635925271,0.2369,3382.4,3382.1,0.4591]
[1735635925470,0.2369,3382.5,3382.1,0.69602]
[1735635925671,3.2078,3382.6,3382.1,0.4591]
[1735635925874,3.44469,3382.6,3382.2,0.23692]
[1735635926069,3.2078,3382.6,3381.8,0.8718]
[1735635926263,2.39313419,3382.8,3381.8,0.4268]
[1735635926264,3.2078,3382.2,3381.8,0.4268]
[1735635926473,0.66163,3382.1,3381.8,0.4268]
[1735635926770,0.4247,3382.1,3381.8,0.4268]
[1735635927366,0.4247,3382.1,3381.8,0.66374]
[1735635927571,0.4247,3382.1,3381.9,0.23694]
[1735635927973,0.4397,3382.5,3381.8,0.4268]
[1735635928161,3.44469,3382.6,3381.9,0.23694]
[1735635928363,3.44469,3382.6,3382.1,0.23692]
[1735635928569,3.2078,3382.6,3381.8,0.4268]
[1735635928775,0.2369,3382.5,3382.0,0.23693]
[1735635929066,0.2369,3382.5,3382.1,0.23692]
[1735635929271,3.2078,3382.6,3381.8,0.4268]
[1735635930174,3.2078,3382.6,3382.3,2.39313419]
[1735635930369,3.2078,3383.3,3382.5,3.2078]
[1735635930566,3.2078,3383.3,3383.1,0.23685]
[1735635930766,3.2078,3383.3,3382.7,2.39313419]
[1735635930767,0.436,3383.4,3382.8,0.23687]
[1735635930966,0.436,3383.4,3382.7,0.23688]
[1735635931175,0.436,3383.4,3382.6,0.4341]
[1735635931366,0.67284,3383.4,3382.9,0.23687]
[1735635931678,0.23685,3383.2,3382.8,0.23688]
[1735635932174,0.23686,3383.1,3382.7,0.23688]
[1735635932467,2.39313419,3383.1,3382.5,3.2078]
[1735635932673,0.23689,3382.7,3382.5,3.2078]
[1735635932873,0.4195,3382.6,3382.5,3.2078]
[1735635934276,0.4184,3383.0,3382.5,3.2078]
[1735635934574,0.23687,3382.9,3382.5,3.44469]
[1735635934776,0.23687,3382.9,3382.5,3.2078]
[1735635934977,0.23687,3382.9,3382.6,0.23689]
[1735635935373,0.4195,3383.0,3382.7,0.23688]
[1735635935576,0.4195,3383.0,3382.5,3.2078]
[1735635935778,0.65637,3383.0,3382.6,0.23689]
[1735635936078,0.65637,3383.0,3382.6,0.23688]
[1735635936280,0.23687,3382.9,3382.5,3.44469]
[1735635936775,0.23687,3382.9,3382.6,0.23688]
[1735635936975,0.4195,3383.0,3382.9,0.23687]
[1735635937278,0.65524,3383.4,3383.0,0.23686]
[1735635937573,0.23685,3383.2,3382.8,0.23687]
[1735635937772,0.8567,3383.4,3382.9,0.23686]
[1735635937773,0.23684,3383.3,3382.9,0.23686]
[1735635937975,0.23684,3383.3,3382.5,3.2078]
[1735635938174,0.23684,3383.3,3383.0,0.23686]
[1735635938370,0.8567,3383.4,3383.0,0.23686]
[1735635938566,1.09354,3383.4,3383.1,0.23685]
[1735635938772,8.08919085,3383.9,3383.0,3.2078]
[1735635938977,0.23681,3383.8,3383.1,0.431]
[1735635939177,8.51699085,3383.9,3383.1,0.8814]
[1735635939373,8.51699085,3383.9,3383.5,0.23682]
[1735635939873,0.6646,3383.9,3383.1,0.8814]
[1735635940077,0.23681,3383.8,3383.4,0.23683]
[1735635940280,0.4278,3383.9,3383.1,0.8814]
[1735635940472,0.4278,3383.9,3383.5,0.23682]
[1735635940976,0.4278,3383.9,3383.4,3.2078]
[1735635941177,0.4278,3383.9,3383.7,0.23681]
[1735635941383,0.4278,3383.9,3383.4,3.2078]
[1735635941681,3.2078,3384.1,3383.7,0.23681]
[1735635942079,3.2078,3384.1,3383.9,0.23679]
[1735635942481,3.2078,3384.1,3383.4,3.2078]
[1735635942781,2.39313419,3384.0,3383.6,0.23682]
[1735635942977,2.62992419,3384.0,3383.6,0.23682]
[1735635943177,0.23679,3384.0,3383.6,0.23682]
[1735635943770,3.2078,3384.1,3383.4,3.2078]
[1735635943979,3.2078,3384.1,3383.8,0.2368]
[1735635944171,3.44459,3384.1,3383.4,3.2078]
[1735635944371,0.2368,3384.0,3383.6,0.23682]
[1735635944680,0.23681,3383.7,3383.4,3.44463]
[1735635944876,0.4242,3383.9,3383.4,3.2078]
[1735635945075,0.4432,3383.8,3383.4,3.2078]
[1735635945281,0.4432,3383.8,3383.4,3.44463]
[1735635945478,0.23681,3383.7,3383.4,3.44463]
[1735635945680,0.4432,3383.8,3383.4,3.44463]
[1735635945881,0.4432,3383.8,3383.5,0.23682]
[1735635946084,0.4432,3383.8,3383.4,3.2078]
[1735635946285,0.4432,3383.8,3382.8,3.2078]
[1735635946286,3.2078,3383.6,3382.8,3.2078]
[1735635946578,3.2078,3383.2,3382.4,0.2369]
[1735635946882,0.23687,3382.9,3382.6,0.23689]
[1735635947180,0.23688,3382.8,3382.4,0.2369]
[1735635947586,0.4306,3383.0,3382.3,3.6544]
[1735635948085,0.4306,3383.0,3382.8,0.23687]
[1735635948286,0.4432,3383.1,3382.9,0.23687]
[1735635950687,0.4306,3383.5,3382.8,3.2078]
[1735635950882,0.66743,3383.5,3383.1,0.23685]
[1735635951078,0.23685,3383.2,3382.9,0.8818]
[1735635951280,0.4306,3383.5,3382.9,0.8818]
[1735635951488,0.23684,3383.4,3382.9,0.8818]
[1735635951689,0.23684,3383.4,3383.1,0.23685]
[1735635952294,0.4306,3383.5,3382.9,0.8818]
[1735635952498,0.66743,3383.5,3382.9,0.8818]
[1735635952700,0.23684,3383.4,3383.1,0.23685]
[1735635952999,0.4306,3383.5,3383.0,0.23686]
[1735635953195,0.23683,3383.4,3383.0,0.23686]
[1735635953500,2.39313419,3383.3,3382.5,40.8]
[1735635953797,2.39313419,3383.3,3382.4,3.2078]
[1735635953798,3.668,3383.2,3382.4,3.2078]
[1735635953990,0.2369,3382.6,3382.4,3.2078]
[1735635954187,2.39313419,3383.0,3382.4,3.2078]
[1735635954392,0.2369,3382.5,3382.4,3.2078]
[1735635954588,2.39313419,3383.0,3382.0,0.8833]
[1735635954798,0.23692,3382.3,3382.0,41.6833]
[1735635955196,0.4441,3382.4,3382.0,41.2432]
[1735635955497,0.4441,3382.4,3382.2,0.23691]
[1735635955698,0.4441,3382.4,3382.1,0.23692]
[1735635955998,0.681,3382.4,3382.0,0.68013]
[1735635956199,0.4441,3382.4,3382.0,0.4432]
[1735635956503,0.23693,3382.1,3381.8,44.0078]
[1735635956899,0.4441,3382.4,3381.8,44.0078]
[1735635957498,0.23694,3382.0,3381.8,44.0078]
[1735635957698,0.23692,3382.2,3381.8,3.44474]
[1735635957899,0.23692,3382.2,3381.8,3.2078]
[1735635958099,0.23694,3381.9,3381.8,3.2078]
[1735635959908,2.39313419,3382.1,3381.1,3.2078]
[1735635959909,3.2078,3382.0,3381.1,3.2078]
[1735635960201,0.23697,3381.5,3381.1,3.2078]
[1735635960400,0.428,3381.4,3381.1,3.2078]
[1735635960600,3.2078,3381.6,3381.2,0.23699]
[1735635960804,3.2078,3381.6,3381.1,3.2078]
[1735635961005,0.23698,3381.4,3381.1,3.2078]
[1735635961299,0.9059,3381.8,3381.2,0.23698]
[1735635961503,0.23697,3381.5,3381.1,3.44479]
[1735635961911,0.23695,3381.7,3381.2,0.23698]
[1735635962208,0.9059,3381.8,3381.1,3.2078]
[1735635962411,3.2078,3381.7,3381.1,3.2078]
[1735635962712,5.60093419,3381.7,3381.1,3.2078]
[1735635962903,0.23698,3381.3,3381.1,3.2078]
[1735635963208,5.60093419,3381.7,3381.1,3.2078]
[1735635963506,0.23697,3381.5,3381.1,3.44479]
[1735635964200,3.2078,3381.7,3381.1,3.2078]
[1735635964409,0.23696,3381.6,3381.2,0.23699]
[1735635964609,0.23696,3381.6,3381.1,3.2078]
[1735635964610,3.2078,3381.7,3381.1,3.2078]
[1735635964809,0.66494,3382.0,3381.5,0.23696]
[1735635965003,2.82113419,3382.0,3381.2,0.23698]
[1735635965203,3.2078,3381.8,3381.1,3.2078]
[1735635965405,0.23698,3381.3,3381.1,3.2078]
[1735635965604,3.2078,3381.8,3381.1,3.2078]
[1735635965811,0.23697,3381.5,3381.1,3.2078]
[1735635966110,0.23695,3381.7,3381.2,0.23699]
[1735635966310,3.2078,3381.8,3381.1,3.2078]
[1735635966499,0.23698,3381.4,3381.1,3.2078]
[1735635967005,3.2078,3381.8,3381.1,3.2078]
[1735635967206,0.4216,3381.9,3381.6,0.23696]
[1735635967398,0.4216,3381.9,3381.2,0.4448]
[1735635967605,0.23695,3381.8,3381.4,0.23697]
[1735635968314,0.65854,3381.9,3381.5,0.23697]
[1735635968810,0.65854,3381.9,3381.2,0.4448]
[1735635969113,0.65854,3381.9,3381.5,0.23696]
[1735635969410,0.23695,3381.8,3381.5,0.23696]
[1735635970110,0.23695,3381.7,3381.4,0.23697]